[Event "NJSK 2022 Meisjes C"]
[Site "Almelo, Netherlands"]
[Date "2022.05.07"]
[Round "7.2"]
[White "Maris, Lauri"]
[Black "Fu, Janice"]
[Result "1-0"]
[TimeControl "90min/40moves + 30min + 30sec/move"]
[WhiteElo "1619"]
[BlackElo "1344"]

1. e4 {[%clk 01:30:58]} {[%emt 00:00:02]} e5 {[%clk 01:30:54]} {[%emt
00:00:06]} 2. Nf3 {[%clk 01:31:21]} {[%emt 00:00:07]} Nc6 {[%clk 01:31:18]}
{[%emt 00:00:06]} 3. Bc4 {[%clk 01:31:43]} {[%emt 00:00:09]} Bc5 {[%clk
01:31:38]} {[%emt 00:00:09]} 4. c3 {[%clk 01:31:58]} {[%emt 00:00:15]} Nf6
{[%clk 01:32:00]} {[%emt 00:00:07]} 5. d3 {[%clk 01:32:19]} {[%emt 00:00:10]}
a6 {[%clk 01:31:57]} {[%emt 00:00:35]} 6. O-O {[%clk 01:31:24]} {[%emt
00:01:23]} d6 {[%clk 01:30:32]} {[%emt 00:01:54]} 7. b4 {[%clk 01:25:37]}
{[%emt 00:06:17]} Ba7 {[%clk 01:28:50]} {[%emt 00:02:12]} 8. a4 {[%clk
01:23:58]} {[%emt 00:02:10]} h6 {[%clk 01:26:04]} {[%emt 00:03:15]} 9. Qb3
{[%clk 01:19:31]} {[%emt 00:04:57]} O-O {[%clk 01:25:13]} {[%emt 00:01:20]} 10.
h3 {[%clk 01:19:36]} {[%emt 00:00:26]} Ne7 {[%clk 01:21:12]} {[%emt 00:04:31]}
11. Be3 {[%clk 01:17:16]} {[%emt 00:02:50]} c6 {[%clk 01:17:10]} {[%emt
00:04:32]} 12. Bxa7 {[%clk 01:15:40]} {[%emt 00:02:07]} Rxa7 {[%clk 01:17:14]}
{[%emt 00:00:26]} 13. Qc2 {[%clk 01:15:53]} {[%emt 00:00:16]} d5 {[%clk
01:15:48]} {[%emt 00:01:56]} 14. Bb3 {[%clk 01:13:49]} {[%emt 00:02:34]} Ng6
{[%clk 01:15:42]} {[%emt 00:00:36]} 15. Nbd2 {[%clk 01:13:05]} {[%emt
00:01:14]} Re8 {[%clk 01:12:57]} {[%emt 00:03:14]} 16. Rfe1 {[%clk 01:12:59]}
{[%emt 00:00:37]} Qc7 {[%clk 01:10:55]} {[%emt 00:02:32]} 17. Nf1 {[%clk
01:11:39]} {[%emt 00:01:50]} b6 {[%clk 01:03:49]} {[%emt 00:07:37]} 18. a5
{[%clk 01:10:33]} {[%emt 00:01:36]} b5 {[%clk 01:01:50]} {[%emt 00:02:28]} 19.
Ng3 {[%clk 01:10:30]} {[%emt 00:00:33]} Qd6 {[%clk 00:56:31]} {[%emt 00:05:49]}
20. Rac1 {[%clk 01:06:28]} {[%emt 00:04:31]} Bd7 {[%clk 00:55:30]} {[%emt
00:01:31]} 21. Qd2 {[%clk 01:03:29]} {[%emt 00:03:29]} Raa8 {[%clk 00:53:01]}
{[%emt 00:03:00]} 22. Rcd1 {[%clk 00:59:45]} {[%emt 00:04:14]} Rac8 {[%clk
00:51:47]} {[%emt 00:01:44]} 23. Rc1 {[%clk 00:57:48]} {[%emt 00:02:27]} Rcd8
{[%clk 00:50:24]} {[%emt 00:01:53]} 24. Rcd1 {[%clk 00:57:20]} {[%emt
00:00:58]} Bc8 {[%clk 00:47:52]} {[%emt 00:03:02]} 25. Bc2 {[%clk 00:56:00]}
{[%emt 00:01:50]} c5 {[%clk 00:47:18]} {[%emt 00:01:05]} 26. exd5 {[%clk
00:50:55]} {[%emt 00:05:34]} Qxd5 {[%clk 00:46:36]} {[%emt 00:01:12]} 27. Ne4
{[%clk 00:49:18]} {[%emt 00:02:07]} Nxe4 {[%clk 00:46:08]} {[%emt 00:00:58]} 28.
dxe4 {[%clk 00:49:33]} {[%emt 00:00:15]} Qxd2 {[%clk 00:46:08]} {[%emt
00:00:30]} 29. Rxd2 {[%clk 00:49:50]} {[%emt 00:00:13]} Rxd2 {[%clk 00:46:22]}
{[%emt 00:00:17]} 30. Nxd2 {[%clk 00:50:14]} {[%emt 00:00:06]} Rd8 {[%clk
00:45:47]} {[%emt 00:01:04]} 31. Nf3 {[%clk 00:50:11]} {[%emt 00:00:33]} c4
{[%clk 00:45:20]} {[%emt 00:00:57]} 32. Rd1 {[%clk 00:49:29]} {[%emt 00:01:11]}
Rxd1+ {[%clk 00:45:07]} {[%emt 00:00:43]} 33. Bxd1 {[%clk 00:49:56]} {[%emt
00:00:05]} Bb7 {[%clk 00:45:13]} {[%emt 00:00:23]} 34. Nd2 {[%clk 00:48:17]}
{[%emt 00:02:09]} f6 {[%clk 00:44:47]} {[%emt 00:00:56]} 35. g3 {[%clk
00:47:13]} {[%emt 00:01:34]} Kf7 {[%clk 00:44:42]} {[%emt 00:00:34]} 36. Bh5
{[%clk 00:47:08]} {[%emt 00:00:36]} Bc6 {[%clk 00:40:17]} {[%emt 00:04:55]} 37.
f4 {[%clk 00:46:43]} {[%emt 00:00:55]} Bb7 {[%clk 00:32:51]} {[%emt 00:07:56]}
38. f5 {[%clk 00:47:05]} {[%emt 00:00:08]} Ke7 {[%clk 00:32:59]} {[%emt
00:00:22]} 39. Bxg6 {[%clk 00:47:16]} {[%emt 00:00:19]} Bc6 {[%clk 00:32:52]}
{[%emt 00:00:37]} 40. Kf2 {[%clk 00:47:34]} {[%emt 00:00:11]} Be8 {[%clk
00:33:06]} {[%emt 00:00:16]} 41. Bxe8 {[%clk 00:47:38]} {[%emt 00:00:26]} Kxe8
{[%clk 00:33:31]} {[%emt 00:00:05]} 42. Kf3 {[%clk 00:47:50]} {[%emt 00:00:19]}
Kf7 {[%clk 00:33:52]} {[%emt 00:00:09]} 43. Nf1 {[%clk 00:47:48]} {[%emt
00:00:32]} g6 {[%clk 00:33:40]} {[%emt 00:00:42]} 44. fxg6+ {[%clk 00:47:36]}
{[%emt 00:00:42]} Kxg6 {[%clk 00:34:03]} {[%emt 00:00:06]} 45. Ne3 {[%clk
00:47:48]} {[%emt 00:00:19]} h5 {[%clk 00:33:40]} {[%emt 00:00:53]} 46. Nd5
{[%clk 00:47:47]} {[%emt 00:00:31]} f5 {[%clk 00:33:56]} {[%emt 00:00:14]} 47.
Nc7 {[%clk 00:47:54]} {[%emt 00:00:23]} fxe4+ {[%clk 00:33:40]} {[%emt
00:00:46]} 48. Kxe4 {[%clk 00:48:16]} {[%emt 00:00:08]} 1-0

[Event "NJSK 2022 Meisjes C"]
[Site "Almelo, Netherlands"]
[Date "2022.05.07"]
[Round "7.3"]
[White "Van Apeldoorn, Vera"]
[Black "Westerhof, Fleur"]
[Result "0-1"]
[TimeControl "90min/40moves + 30min + 30sec/move"]
[WhiteElo "1022"]
[BlackElo "1509"]

1. d4 {[%clk 01:30:58]} {[%emt 00:00:01]} d5 {[%clk 01:30:50]} {[%emt
00:00:10]} 2. c4 {[%clk 01:31:16]} {[%emt 00:00:12]} e6 {[%clk 01:31:09]}
{[%emt 00:00:10]} 3. Nc3 {[%clk 01:31:16]} {[%emt 00:00:31]} Nf6 {[%clk
01:31:23]} {[%emt 00:00:16]} 4. cxd5 {[%clk 01:31:27]} {[%emt 00:00:20]} exd5
{[%clk 01:31:44]} {[%emt 00:00:08]} 5. Nf3 {[%clk 01:31:22]} {[%emt 00:00:35]}
Be7 {[%clk 01:30:47]} {[%emt 00:01:26]} 6. Bf4 {[%clk 01:30:09]} {[%emt
00:01:44]} O-O {[%clk 01:30:08]} {[%emt 00:01:08]} 7. h3 {[%clk 01:28:57]}
{[%emt 00:01:43]} c5 {[%clk 01:27:38]} {[%emt 00:03:00]} 8. e3 {[%clk
01:27:20]} {[%emt 00:02:07]} Nc6 {[%clk 01:24:27]} {[%emt 00:03:40]} 9. Be2
{[%clk 01:25:49]} {[%emt 00:02:01]} cxd4 {[%clk 01:22:16]} {[%emt 00:02:41]} 10.
exd4 {[%clk 01:25:44]} {[%emt 00:00:36]} Bf5 {[%clk 01:21:33]} {[%emt
00:01:13]} 11. O-O {[%clk 01:24:32]} {[%emt 00:01:42]} Ne4 {[%clk 01:18:12]}
{[%emt 00:03:50]} 12. Nxe4 {[%clk 01:18:56]} {[%emt 00:06:06]} dxe4 {[%clk
01:17:42]} {[%emt 00:01:00]} 13. Nd2 {[%clk 01:12:58]} {[%emt 00:06:28]} Qxd4
{[%clk 01:15:04]} {[%emt 00:03:08]} 14. Rb1 {[%clk 01:07:44]} {[%emt 00:05:45]}
Qf6 {[%clk 01:12:41]} {[%emt 00:02:52]} 15. Bg4 {[%clk 01:03:37]} {[%emt
00:04:37]} Bg6 {[%clk 01:11:16]} {[%emt 00:01:54]} 16. Be3 {[%clk 01:02:30]}
{[%emt 00:01:37]} Qd6 {[%clk 00:44:21]} {[%emt 00:27:25]} 17. Qa4 {[%clk
00:56:44]} {[%emt 00:06:17]} f5 {[%clk 00:39:02]} {[%emt 00:05:49]} 18. Be2
{[%clk 00:52:32]} {[%emt 00:04:41]} Kh8 {[%clk 00:35:28]} {[%emt 00:04:05]} 19.
Rfd1 {[%clk 00:50:56]} {[%emt 00:02:07]} Qf6 {[%clk 00:34:15]} {[%emt
00:01:41]} 20. Bf4 {[%clk 00:48:55]} {[%emt 00:02:30]} Rad8 {[%clk 00:32:52]}
{[%emt 00:01:54]} 21. Nc4 {[%clk 00:41:34]} {[%emt 00:07:52]} Rxd1+ {[%clk
00:31:38]} {[%emt 00:01:43]} 22. Qxd1 {[%clk 00:41:26]} {[%emt 00:00:38]} Rd8
{[%clk 00:30:42]} {[%emt 00:01:27]} 23. Qc1 {[%clk 00:38:06]} {[%emt 00:03:50]}
Nd4 {[%clk 00:28:52]} {[%emt 00:02:19]} 24. Bf1 {[%clk 00:36:47]} {[%emt
00:01:49]} Ne6 {[%clk 00:26:53]} {[%emt 00:02:29]} 25. Be5 {[%clk 00:35:22]}
{[%emt 00:01:56]} Qg5 {[%clk 00:26:16]} {[%emt 00:01:07]} 26. Qc3 {[%clk
00:33:02]} {[%emt 00:02:46]} Bf6 {[%clk 00:25:45]} {[%emt 00:01:05]} 27. Bxf6
{[%clk 00:32:06]} {[%emt 00:01:26]} Qxf6 {[%clk 00:25:55]} {[%emt 00:00:20]} 28.
Qb4 {[%clk 00:31:47]} {[%emt 00:00:49]} b6 {[%clk 00:24:46]} {[%emt 00:01:39]}
29. Qa3 {[%clk 00:30:42]} {[%emt 00:01:27]} Qf7 {[%clk 00:23:57]} {[%emt
00:01:26]} 30. Ne5 {[%clk 00:29:57]} {[%emt 00:01:15]} Qc7 {[%clk 00:23:38]}
{[%emt 00:00:49]} 31. Nxg6+ {[%clk 00:29:48]} {[%emt 00:00:40]} hxg6 {[%clk
00:23:59]} {[%emt 00:00:09]} 32. b3 {[%clk 00:28:28]} {[%emt 00:01:50]} Nc5
{[%clk 00:19:13]} {[%emt 00:05:16]} 33. Rc1 {[%clk 00:26:57]} {[%emt 00:02:01]}
Qb7 {[%clk 00:19:05]} {[%emt 00:00:37]} 34. b4 {[%clk 00:24:34]} {[%emt
00:02:53]} Nd3 {[%clk 00:19:03]} {[%emt 00:00:33]} 35. Rd1 {[%clk 00:23:26]}
{[%emt 00:01:38]} Qd7 {[%clk 00:17:51]} {[%emt 00:01:42]} 36. Qb3 {[%clk
00:19:46]} {[%emt 00:04:07]} Qd5 {[%clk 00:17:17]} {[%emt 00:01:08]} 37. Qc3
{[%clk 00:17:27]} {[%emt 00:02:47]} Qd4 {[%clk 00:16:16]} {[%emt 00:01:32]} 38.
Qd2 {[%clk 00:15:42]} {[%emt 00:02:15]} Rd7 {[%clk 00:08:56]} {[%emt 00:07:50]}
39. a3 {[%clk 00:15:03]} {[%emt 00:01:10]} Rd6 {[%clk 00:07:07]} {[%emt
00:02:18]} 40. a4 {[%clk 00:13:18]} {[%emt 00:02:15]} Qd5 {[%clk 00:06:44]}
{[%emt 00:00:52]} 41. b5 {[%clk 00:11:58]} {[%emt 00:01:51]} Nb4 {[%clk
00:02:07]} {[%emt 00:05:08]} 42. Qxd5 {[%clk 00:11:21]} {[%emt 00:01:06]} Rxd5
{[%clk 00:02:19]} {[%emt 00:00:18]} 43. Rc1 {[%clk 00:11:14]} {[%emt 00:00:37]}
Rc5 {[%clk 00:02:13]} {[%emt 00:00:36]} 44. Rd1 {[%clk 00:11:24]} {[%emt
00:00:19]} Nd5 {[%clk 00:02:21]} {[%emt 00:00:23]} 45. Rb1 {[%clk 00:11:09]}
{[%emt 00:00:45]} Nc3 {[%clk 00:01:14]} {[%emt 00:01:36]} 46. Ra1 {[%clk
00:11:18]} {[%emt 00:00:22]} Rd5 {[%clk 00:00:56]} {[%emt 00:00:46]} 47. Ra3
{[%clk 00:09:46]} {[%emt 00:02:05]} Nb1 {[%clk 00:29:12]} {[%emt 00:02:13]} 48.
Ra1 {[%clk 00:39:28]} {[%emt 00:00:48]} Nd2 {[%clk 00:28:57]} {[%emt 00:00:45]}
49. Be2 {[%clk 00:39:15]} {[%emt 00:00:43]} Nb3 {[%clk 00:27:55]} {[%emt
00:01:32]} 50. Ra3 {[%clk 00:37:27]} {[%emt 00:02:18]} Nc5 {[%clk 00:28:03]}
{[%emt 00:00:21]} 51. a5 {[%clk 00:37:05]} {[%emt 00:00:54]} Nd3 {[%clk
00:22:18]} {[%emt 00:06:14]} 52. axb6 {[%clk 00:35:52]} {[%emt 00:01:42]} axb6
{[%clk 00:22:22]} {[%emt 00:00:27]} 53. Rc3 {[%clk 00:35:00]} {[%emt 00:01:22]}
Rxb5 {[%clk 00:20:25]} {[%emt 00:02:27]} 54. Bxd3 {[%clk 00:35:08]} {[%emt
00:00:22]} exd3 {[%emt 00:00:10]} 55. Rxd3 {[%clk 00:35:36]} Kg8 {[%clk
00:20:30]} {[%emt 00:00:47]} 56. Kf1 {[%clk 00:35:58]} {[%emt 00:00:08]} Kf7
{[%clk 00:20:51]} {[%emt 00:00:10]} 57. Ke2 {[%clk 00:36:19]} {[%emt 00:00:08]}
Ke6 {[%clk 00:20:18]} {[%emt 00:01:02]} 58. Kd2 {[%clk 00:36:28]} {[%emt
00:00:22]} Rd5 {[%clk 00:20:43]} {[%emt 00:00:05]} 59. Rxd5 {[%clk 00:36:22]}
{[%emt 00:00:36]} Kxd5 {[%clk 00:21:04]} {[%emt 00:00:09]} 60. Kc3 {[%clk
00:36:40]} {[%emt 00:00:12]} Kc5 {[%clk 00:21:22]} {[%emt 00:00:12]} 61. Kb3
{[%clk 00:37:06]} {[%emt 00:00:04]} Kb5 {[%clk 00:21:41]} {[%emt 00:00:11]} 62.
g4 {[%clk 00:37:07]} {[%emt 00:00:29]} fxg4 {[%clk 00:22:02]} {[%emt 00:00:09]}
63. hxg4 {[%clk 00:37:31]} {[%emt 00:00:06]} g5 {[%clk 00:22:27]} {[%emt
00:00:05]} 64. Kc3 {[%clk 00:37:52]} {[%emt 00:00:09]} Ka4 {[%clk 00:22:53]}
{[%emt 00:00:05]} 65. Kb2 {[%clk 00:38:13]} {[%emt 00:00:08]} Kb4 {[%clk
00:23:18]} {[%emt 00:00:05]} 66. f3 {[%clk 00:38:38]} {[%emt 00:00:05]} g6
{[%clk 00:23:44]} {[%emt 00:00:03]} 67. Kc2 {[%clk 00:39:00]} {[%emt 00:00:07]}
Ka3 {[%clk 00:24:05]} {[%emt 00:00:10]} 68. Kc3 {[%clk 00:38:56]} {[%emt
00:00:34]} b5 {[%clk 00:24:25]} {[%emt 00:00:10]} 69. Kc2 {[%clk 00:38:50]}
{[%emt 00:00:36]} b4 {[%clk 00:24:48]} {[%emt 00:00:08]} 70. Kb1 {[%clk
00:39:05]} {[%emt 00:00:14]} Kb3 {[%clk 00:25:09]} {[%emt 00:00:10]} 71. Kc1
{[%clk 00:39:30]} {[%emt 00:00:05]} Ka2 {[%clk 00:25:29]} {[%emt 00:00:10]} 72.
Kc2 {[%clk 00:39:32]} {[%emt 00:00:27]} b3 {[%clk 00:25:55]} {[%emt 00:00:04]}
73. Kc3 {[%clk 00:39:39]} {[%emt 00:00:23]} b2 {[%clk 00:26:20]} {[%emt
00:00:05]} 74. f4 {[%clk 00:39:36]} {[%emt 00:00:33]} gxf4 {[%clk 00:26:37]}
{[%emt 00:00:14]} 75. g5 {[%clk 00:39:45]} {[%emt 00:00:21]} b1=Q {[%clk
00:26:46]} {[%emt 00:00:17]} 76. Kc4 {[%clk 00:39:46]} {[%emt 00:00:31]} Qb3+
{[%clk 00:27:06]} {[%emt 00:00:09]} 77. Kc5 {[%clk 00:39:59]} {[%emt 00:00:18]}
f3 {[%clk 00:27:03]} {[%emt 00:00:34]} 78. Kc6 {[%clk 00:39:53]} {[%emt
00:00:36]} f2 {[%clk 00:27:17]} {[%emt 00:00:16]} 79. Kd6 {[%clk 00:39:49]}
{[%emt 00:00:34]} f1=Q {[%clk 00:27:14]} {[%emt 00:00:34]} 80. Ke5 {[%clk
00:39:52]} {[%emt 00:00:26]} Qf5+ {[%clk 00:27:29]} {[%emt 00:00:13]} 81. Kd4
{[%clk 00:40:10]} {[%emt 00:00:13]} 0-1

[Event "NJSK 2022 Meisjes C"]
[Site "Almelo, Netherlands"]
[Date "2022.05.07"]
[Round "7.4"]
[White "Liu, Chia-Yun"]
[Black "Knobbe, Elise"]
[Result "0-1"]
[TimeControl "90min/40moves + 30min + 30sec/move"]
[WhiteElo "1148"]
[BlackElo "1553"]

1. e4 {[%clk 01:30:58]} c5 {[%clk 01:30:55]} {[%emt 00:00:06]} 2. Nf3 {[%clk
01:31:21]} {[%emt 00:00:07]} Nc6 {[%clk 01:31:18]} {[%emt 00:00:07]} 3. d4
{[%clk 01:31:42]} {[%emt 00:00:09]} cxd4 {[%clk 01:31:44]} {[%emt 00:00:04]} 4.
Nxd4 {[%clk 01:32:07]} {[%emt 00:00:06]} g6 {[%clk 01:32:08]} {[%emt 00:00:06]}
5. Be2 {[%clk 01:31:38]} {[%emt 00:01:00]} Bg7 {[%clk 01:32:26]} {[%emt
00:00:11]} 6. Be3 {[%clk 01:31:16]} {[%emt 00:00:51]} Nf6 {[%clk 01:32:02]}
{[%emt 00:00:55]} 7. Nc3 {[%clk 01:30:22]} {[%emt 00:01:24]} O-O {[%clk
01:31:35]} {[%emt 00:00:57]} 8. Qd2 {[%clk 01:29:53]} {[%emt 00:00:59]} d5
{[%clk 01:29:05]} {[%emt 00:02:59]} 9. exd5 {[%clk 01:28:18]} {[%emt 00:02:05]}
Nxd5 {[%clk 01:29:03]} {[%emt 00:00:31]} 10. Nxd5 {[%clk 01:25:43]} {[%emt
00:03:06]} Qxd5 {[%clk 01:28:32]} {[%emt 00:01:00]} 11. Nxc6 {[%clk 01:25:30]}
{[%emt 00:00:44]} Qxc6 {[%clk 01:28:13]} {[%emt 00:00:49]} 12. c3 {[%clk
01:24:34]} {[%emt 00:01:26]} Qxg2 {[%clk 01:26:18]} {[%emt 00:02:24]} 13. O-O-O
{[%clk 01:23:28]} {[%emt 00:01:36]} Be6 {[%clk 01:24:27]} {[%emt 00:02:21]} 14.
Kb1 {[%clk 01:20:44]} {[%emt 00:03:15]} Qe4+ {[%clk 01:20:49]} {[%emt
00:04:07]} 15. Bd3 {[%clk 01:18:27]} {[%emt 00:02:48]} Qa4 {[%clk 01:20:17]}
{[%emt 00:01:02]} 16. b3 {[%clk 01:15:52]} {[%emt 00:03:05]} Qa5 {[%clk
01:18:15]} {[%emt 00:02:30]} 17. Bd4 {[%clk 01:12:39]} {[%emt 00:03:46]} Bxd4
{[%clk 01:15:45]} {[%emt 00:02:59]} 18. cxd4 {[%clk 01:12:54]} {[%emt
00:00:14]} Qxd2 {[%clk 01:15:51]} {[%emt 00:00:25]} 19. Rxd2 {[%clk 01:13:18]}
{[%emt 00:00:06]} Rfd8 {[%clk 01:15:28]} {[%emt 00:00:53]} 20. Bc2 {[%clk
01:11:08]} {[%emt 00:02:40]} Rd7 {[%clk 01:09:36]} {[%emt 00:06:23]} 21. h4
{[%clk 01:04:56]} {[%emt 00:06:41]} Rad8 {[%clk 01:08:11]} {[%emt 00:01:54]} 22.
Be4 {[%clk 01:04:21]} {[%emt 00:01:06]} Bd5 {[%clk 01:06:36]} {[%emt 00:02:05]}
23. Bxd5 {[%clk 01:02:48]} {[%emt 00:02:03]} Rxd5 {[%clk 01:06:50]} {[%emt
00:00:16]} 24. Re1 {[%clk 01:01:34]} {[%emt 00:01:44]} e6 {[%clk 01:05:35]}
{[%emt 00:01:45]} 25. Re4 {[%clk 00:58:20]} {[%emt 00:03:44]} e5 {[%clk
01:03:28]} {[%emt 00:02:36]} 26. Kc2 {[%clk 00:55:51]} {[%emt 00:03:00]} exd4
{[%clk 01:03:28]} {[%emt 00:00:30]} 27. Kd3 {[%clk 00:55:26]} {[%emt 00:00:55]}
R8d7 {[%clk 00:58:22]} {[%emt 00:05:37]} 28. Rc2 {[%clk 00:54:28]} {[%emt
00:01:27]} Rf5 {[%clk 00:54:07]} {[%emt 00:04:45]} 29. Rxd4 {[%clk 00:52:55]}
{[%emt 00:02:03]} Rxd4+ {[%clk 00:54:17]} {[%emt 00:00:20]} 30. Kxd4 {[%clk
00:53:20]} {[%emt 00:00:05]} Rf4+ {[%clk 00:54:00]} {[%emt 00:00:47]} 31. Ke3
{[%clk 00:53:08]} {[%emt 00:00:42]} Rxh4 {[%clk 00:53:43]} {[%emt 00:00:46]} 32.
Rc8+ {[%clk 00:52:13]} {[%emt 00:01:26]} Kg7 {[%clk 00:53:53]} {[%emt
00:00:20]} 33. Rb8 {[%clk 00:52:01]} {[%emt 00:00:42]} Rb4 {[%clk 00:54:03]}
{[%emt 00:00:20]} 34. Ra8 {[%clk 00:52:16]} {[%emt 00:00:15]} a6 {[%clk
00:54:19]} {[%emt 00:00:14]} 35. Rd8 {[%clk 00:52:00]} {[%emt 00:00:46]} h5
{[%clk 00:53:18]} {[%emt 00:01:31]} 36. Rd1 {[%clk 00:51:47]} {[%emt 00:00:43]}
g5 {[%clk 00:52:18]} {[%emt 00:01:31]} 37. Rd4 {[%clk 00:48:44]} {[%emt
00:03:32]} Rxd4 {[%clk 00:51:46]} {[%emt 00:01:02]} 38. Kxd4 {[%clk 00:49:08]}
{[%emt 00:00:06]} h4 {[%clk 00:52:04]} {[%emt 00:00:13]} 39. Ke4 {[%clk
00:47:58]} {[%emt 00:01:40]} h3 {[%clk 00:52:05]} {[%emt 00:00:28]} 40. Kf3
{[%clk 00:48:18]} {[%emt 00:00:09]} g4+ {[%clk 00:50:45]} {[%emt 00:01:51]} 41.
Kg3 {[%clk 00:48:28]} {[%emt 00:00:20]} f5 {[%clk 00:50:52]} {[%emt 00:00:23]}
42. f3 {[%clk 00:48:38]} {[%emt 00:00:20]} Kg6 {[%clk 00:50:52]} {[%emt
00:00:31]} 43. f4 {[%clk 00:47:51]} {[%emt 00:01:16]} Kf6 {[%clk 00:51:02]}
{[%emt 00:00:19]} 44. a4 {[%clk 00:47:28]} {[%emt 00:00:55]} Ke6 {[%clk
00:51:16]} {[%emt 00:00:15]} 45. b4 {[%clk 00:47:17]} {[%emt 00:00:41]} Kd5
{[%clk 00:51:30]} {[%emt 00:00:16]} 46. b5 {[%clk 00:47:07]} {[%emt 00:00:40]}
axb5 {[%clk 00:51:42]} {[%emt 00:00:19]} 47. axb5 {[%clk 00:47:33]} {[%emt
00:00:03]} Kc5 {[%clk 00:52:05]} {[%emt 00:00:07]} 48. b6 {[%clk 00:47:57]}
{[%emt 00:00:06]} Kxb6 {[%clk 00:52:26]} {[%emt 00:00:09]} 49. Kh4 {[%clk
00:48:12]} {[%emt 00:00:15]} h2 {[%clk 00:52:45]} {[%emt 00:00:10]} 50. Kg5
{[%clk 00:48:39]} {[%emt 00:00:03]} h1=Q {[%clk 00:52:56]} {[%emt 00:00:19]} 51.
Kxf5 {[%clk 00:49:05]} {[%emt 00:00:03]} Qf3 {[%clk 00:52:34]} {[%emt
00:00:53]} 52. Kg5 {[%clk 00:49:10]} {[%emt 00:00:25]} g3 {[%clk 00:52:47]}
{[%emt 00:00:17]} 53. f5 {[%clk 00:49:34]} {[%emt 00:00:06]} g2 {[%clk
00:53:07]} {[%emt 00:00:10]} 54. f6 {[%clk 00:49:50]} {[%emt 00:00:14]} Qxf6+
{[%clk 00:53:30]} {[%emt 00:00:07]} 55. Kxf6 {[%clk 00:50:11]} {[%emt
00:00:09]} g1=Q {[%clk 00:53:48]} {[%emt 00:00:11]} 56. Ke6 {[%clk 00:50:36]}
{[%emt 00:00:06]} Qd4 {[%clk 00:54:02]} {[%emt 00:00:16]} 57. Kf5 {[%clk
00:50:59]} {[%emt 00:00:07]} Qe3 {[%clk 00:54:14]} {[%emt 00:00:18]} 58. Kg4
{[%clk 00:51:18]} {[%emt 00:00:10]} Qf2 {[%clk 00:54:25]} {[%emt 00:00:19]} 59.
Kh5 {[%clk 00:51:33]} {[%emt 00:00:15]} Kc5 {[%clk 00:54:45]} {[%emt 00:00:11]}
60. Kg5 {[%clk 00:51:57]} {[%emt 00:00:06]} Kd5 {[%clk 00:55:01]} {[%emt
00:00:15]} 61. Kg6 {[%clk 00:51:52]} {[%emt 00:00:33]} Ke6 {[%clk 00:55:19]}
{[%emt 00:00:13]} 62. Kg7 {[%clk 00:52:14]} {[%emt 00:00:08]} Qf6+ {[%clk
00:55:36]} {[%emt 00:00:12]} 63. Kh7 {[%clk 00:52:35]} {[%emt 00:00:11]} Qg5
{[%clk 00:55:56]} {[%emt 00:00:09]} 64. Kh8 {[%clk 00:52:55]} {[%emt 00:00:09]}
Kf7 {[%clk 00:56:16]} {[%emt 00:00:10]} 65. Kh7 {[%clk 00:53:19]} {[%emt
00:00:06]} Qg7 {[%clk 00:56:43]} {[%emt 00:00:03]} 0-1

[Event "NJSK 2022 Meisjes C"]
[Site "Almelo, Netherlands"]
[Date "2022.05.07"]
[Round "7.5"]
[White "Gergin, Isafara"]
[Black "Yildirim, Azra"]
[Result "1-0"]
[TimeControl "90min/40moves + 30min + 30sec/move"]
[WhiteElo "1723"]
[BlackElo "985"]

1. e4 {[%clk 01:30:56]} {[%emt 00:00:03]} e5 {[%clk 01:29:35]} {[%emt
00:01:25]} 2. Nf3 {[%clk 01:31:22]} {[%emt 00:00:05]} Nc6 {[%clk 01:29:31]}
{[%emt 00:00:34]} 3. Bc4 {[%clk 01:31:46]} {[%emt 00:00:05]} Bc5 {[%clk
01:29:26]} {[%emt 00:00:36]} 4. c3 {[%clk 01:32:11]} {[%emt 00:00:05]} Nf6
{[%clk 01:29:05]} {[%emt 00:00:50]} 5. d3 {[%clk 01:32:29]} {[%emt 00:00:12]}
h6 {[%clk 01:27:55]} {[%emt 00:01:41]} 6. Bb3 {[%clk 01:31:12]} {[%emt
00:01:47]} d6 {[%clk 01:24:09]} {[%emt 00:04:16]} 7. h3 {[%clk 01:28:19]}
{[%emt 00:03:22]} O-O {[%clk 01:21:08]} {[%emt 00:03:31]} 8. Nbd2 {[%clk
01:27:51]} {[%emt 00:00:58]} a6 {[%clk 01:19:56]} {[%emt 00:01:42]} 9. Nf1
{[%clk 01:27:06]} {[%emt 00:01:14]} Be6 {[%clk 01:10:00]} {[%emt 00:10:27]} 10.
Bc2 {[%clk 01:25:28]} {[%emt 00:02:08]} Qd7 {[%clk 01:07:26]} {[%emt 00:03:05]}
11. Ng3 {[%clk 01:22:55]} {[%emt 00:03:02]} d5 {[%clk 01:01:22]} {[%emt
00:06:35]} 12. Qe2 {[%clk 01:21:15]} {[%emt 00:02:09]} Rad8 {[%clk 00:55:36]}
{[%emt 00:06:17]} 13. O-O {[%clk 01:12:01]} {[%emt 00:09:43]} Bxh3 {[%clk
00:29:05]} {[%emt 00:27:01]} 14. gxh3 {[%clk 01:05:31]} {[%emt 00:07:00]} Qxh3
{[%clk 00:28:58]} {[%emt 00:00:37]} 15. Be3 {[%clk 00:54:25]} {[%emt 00:11:36]}
Bxe3 {[%clk 00:22:34]} {[%emt 00:06:54]} 16. Qxe3 {[%clk 00:45:09]} {[%emt
00:09:46]} d4 {[%clk 00:21:22]} {[%emt 00:01:42]} 17. Qe2 {[%clk 00:39:28]}
{[%emt 00:06:11]} Rd6 {[%clk 00:20:03]} {[%emt 00:01:49]} 18. Rfe1 {[%clk
00:30:52]} {[%emt 00:09:06]} Nh5 {[%clk 00:04:52]} {[%emt 00:15:41]} 19. Qf1
{[%clk 00:22:28]} {[%emt 00:08:53]} Qg4 {[%clk 00:03:48]} {[%emt 00:01:35]} 20.
Nh2 {[%clk 00:16:13]} {[%emt 00:06:45]} Qg5 {[%clk 00:02:21]} {[%emt 00:01:58]}
21. Qh3 {[%clk 00:10:49]} {[%emt 00:05:53]} Rg6 {[%clk 00:00:32]} {[%emt
00:02:19]} 22. Nf3 {[%clk 00:08:31]} {[%emt 00:02:48]} 1-0